[Event "Titled Tuesday Blitz June 27 Early 2023"]
[White "campochess"]
[Black "Politov, Pavel Y."]
[BlackFideId "24110515"]
[WhiteElo "2158"]
[BlackElo "2096"]
[Result "1-0"]
[Round "6"]
[TimeControl "180+2"]
[Date "2023.06.27"]
[WhiteClock "0:02:18"]
[BlackClock "0:00:00"]
[Board "206"]

1. Nf3 {[%clk 0:02:59]}  d5 {[%clk 0:02:59]} 2. c4 {[%clk 0:02:58]}  dxc4 {[%clk 0:02:55]} 3. Na3 {[%clk 0:02:57]}  Nf6 {[%clk 0:02:43]} 4. Nxc4 {[%clk 0:02:56]}  e6 {[%clk 0:02:42]} 5. g3 {[%clk 0:02:53]}  Be7 {[%clk 0:02:34]} 6. Bg2 {[%clk 0:02:53]}  a6 {[%clk 0:02:32]} 7. a4 {[%clk 0:02:51]}  Nbd7 {[%clk 0:02:25]} 8. O-O {[%clk 0:02:49]}  O-O {[%clk 0:02:24]} 9. b3 {[%clk 0:02:49]}  c5 {[%clk 0:02:20]} 10. Bb2 {[%clk 0:02:49]}  Qc7 {[%clk 0:02:17]} 11. Rc1 {[%clk 0:02:48]}  Rb8 {[%clk 0:02:13]} 12. d4 {[%clk 0:02:47]}  b5 {[%clk 0:02:08]} 13. axb5 {[%clk 0:02:46]}  axb5 {[%clk 0:02:09]} 14. Nce5 {[%clk 0:02:46]}  Qb6 {[%clk 0:01:33]} 15. Nd3 {[%clk 0:02:37]}  Bb7 {[%clk 0:01:00]} 16. dxc5 {[%clk 0:02:34]}  Nxc5 {[%clk 0:00:59]} 17. Bd4 {[%clk 0:02:32]}  Bxf3 {[%clk 0:00:17]} 18. Nxc5 {[%clk 0:02:25]}  Bxg2 {[%clk 0:00:08]} 19. Kxg2 {[%clk 0:02:24]}  Qd8 {[%clk 0:00:02]} 20. Be5 {[%clk 0:02:19]}  Rc8 {[%clk 0:00:00]} 21. b4 {[%clk 0:02:18]} 1-0


[Site "https://www.chess.com"]

[Event "Titled Tuesday Blitz June 27 Early 2023"]
[White "Durarbayli, Vasif"]
[Black "Hakobyan, Aram"]
[WhiteFideId "13402935"]
[BlackFideId "13306677"]
[WhiteElo "2931"]
[BlackElo "3009"]
[Result "1/2-1/2"]
[Round "7"]
[TimeControl "180+2"]
[Date "2023.06.27"]
[WhiteClock "0:00:19"]
[BlackClock "0:02:35"]
[Board "1"]

1. e4 {[%clk 0:03:00]}  g6 {[%clk 0:03:00]} 2. d4 {[%clk 0:02:59]}  Bg7 {[%clk 0:03:01]} 3. Nc3 {[%clk 0:02:59]}  c5 {[%clk 0:03:01]} 4. d5 {[%clk 0:02:53]}  d6 {[%clk 0:03:00]} 5. h3 {[%clk 0:02:51]}  Nf6 {[%clk 0:03:00]} 6. Nf3 {[%clk 0:02:51]}  O-O {[%clk 0:03:01]} 7. Be2 {[%clk 0:02:47]}  b5 {[%clk 0:02:57]} 8. Bxb5 {[%clk 0:02:46]}  Nxe4 {[%clk 0:02:56]} 9. Nxe4 {[%clk 0:02:43]}  Qa5+ {[%clk 0:02:56]} 10. Nc3 {[%clk 0:02:39]}  Bxc3+ {[%clk 0:02:56]} 11. bxc3 {[%clk 0:02:40]}  Qxb5 {[%clk 0:02:56]} 12. Bh6 {[%clk 0:02:29]}  Re8 {[%clk 0:02:55]} 13. Qd3 {[%clk 0:00:19]}  Ba6 {[%clk 0:02:35]} 1/2-1/2


[Site "https://www.chess.com"]

[Event "Titled Tuesday Blitz June 27 Early 2023"]
[White "So, Wesley"]
[Black "Andreikin, Dmitry"]
[WhiteFideId "5202213"]
[BlackFideId "4158814"]
[WhiteElo "3109"]
[BlackElo "3006"]
[Result "1/2-1/2"]
[Round "7"]
[TimeControl "180+2"]
[Date "2023.06.27"]
[WhiteClock "0:00:45"]
[BlackClock "0:02:15"]
[Board "2"]

1. e4 {[%clk 0:03:00]}  c5 {[%clk 0:02:59]} 2. Nf3 {[%clk 0:02:59]}  e6 {[%clk 0:03:00]} 3. d4 {[%clk 0:02:58]}  cxd4 {[%clk 0:03:00]} 4. Nxd4 {[%clk 0:02:58]}  a6 {[%clk 0:03:01]} 5. g3 {[%clk 0:02:53]}  h5 {[%clk 0:02:57]} 6. Bg2 {[%clk 0:02:49]}  h4 {[%clk 0:02:57]} 7. O-O {[%clk 0:02:50]}  d6 {[%clk 0:02:51]} 8. Re1 {[%clk 0:02:44]}  Nf6 {[%clk 0:02:50]} 9. c4 {[%clk 0:02:42]}  Bd7 {[%clk 0:02:43]} 10. g4 {[%clk 0:02:35]}  h3 {[%clk 0:02:39]} 11. Bh1 {[%clk 0:00:45]}  Nc6 {[%clk 0:02:15]} 1/2-1/2


[Site "https://www.chess.com"]

[Event "Titled Tuesday Blitz June 27 Early 2023"]
[White "Lazavik, Denis"]
[Black "Indjic, Aleksandar"]
[WhiteFideId "13515110"]
[BlackFideId "911925"]
[WhiteElo "3038"]
[BlackElo "2958"]
[Result "0-1"]
[Round "7"]
[TimeControl "180+2"]
[Date "2023.06.27"]
[WhiteClock "0:00:00"]
[BlackClock "0:02:16"]
[Board "3"]

1. d4 {[%clk 0:03:00]}  Nf6 {[%clk 0:03:00]} 2. c4 {[%clk 0:03:01]}  e6 {[%clk 0:03:01]} 3. Nc3 {[%clk 0:03:02]}  c5 {[%clk 0:03:01]} 4. d5 {[%clk 0:03:02]}  exd5 {[%clk 0:03:02]} 5. cxd5 {[%clk 0:03:03]}  d6 {[%clk 0:03:02]} 6. e4 {[%clk 0:03:02]}  g6 {[%clk 0:03:03]} 7. h3 {[%clk 0:03:03]}  Bg7 {[%clk 0:03:03]} 8. Bd3 {[%clk 0:03:03]}  O-O {[%clk 0:03:03]} 9. Nf3 {[%clk 0:03:04]}  b5 {[%clk 0:03:03]} 10. Bxb5 {[%clk 0:03:03]}  Nxe4 {[%clk 0:03:01]} 11. Nxe4 {[%clk 0:03:03]}  Qa5+ {[%clk 0:03:01]} 12. Nfd2 {[%clk 0:03:04]}  Qxb5 {[%clk 0:03:02]} 13. Nxd6 {[%clk 0:03:05]}  Qa6 {[%clk 0:03:02]} 14. N2c4 {[%clk 0:03:05]}  Nd7 {[%clk 0:03:02]} 15. O-O {[%clk 0:03:06]}  Ne5 {[%clk 0:03:02]} 16. Nxc8 {[%clk 0:03:06]}  Raxc8 {[%clk 0:03:02]} 17. Nxe5 {[%clk 0:03:04]}  Bxe5 {[%clk 0:03:03]} 18. Re1 {[%clk 0:03:04]}  Rfe8 {[%clk 0:03:03]} 19. Bg5 {[%clk 0:03:02]}  Qd6 {[%clk 0:03:01]} 20. Qa4 {[%clk 0:00:00]}  Qxd5 {[%clk 0:02:16]} 0-1


[Site "https://www.chess.com"]

[Event "Titled Tuesday Blitz June 27 Early 2023"]
[White "Terry, Renato"]
[Black "Tari, Aryan"]
[WhiteFideId "3803457"]
[BlackFideId "1510045"]
[WhiteElo "3002"]
[BlackElo "2935"]
[Result "1/2-1/2"]
[Round "7"]
[TimeControl "180+2"]
[Date "2023.06.27"]
[WhiteClock "0:01:13"]
[BlackClock "0:02:15"]
[Board "5"]

1. d4 {[%clk 0:03:00]}  d5 {[%clk 0:02:59]} 2. Nf3 {[%clk 0:02:59]}  Nf6 {[%clk 0:02:59]} 3. c4 {[%clk 0:03:00]}  e6 {[%clk 0:02:59]} 4. e3 {[%clk 0:03:01]}  b6 {[%clk 0:02:55]} 5. b3 {[%clk 0:03:01]}  Bb7 {[%clk 0:02:56]} 6. Bd3 {[%clk 0:03:01]}  Nbd7 {[%clk 0:02:50]} 7. O-O {[%clk 0:03:01]}  Bd6 {[%clk 0:02:41]} 8. Bb2 {[%clk 0:03:01]}  O-O {[%clk 0:02:38]} 9. Nbd2 {[%clk 0:02:58]}  Qe7 {[%clk 0:02:36]} 10. Ne5 {[%clk 0:02:53]}  c5 {[%clk 0:02:27]} 11. Nxd7 {[%clk 0:01:13]}  Nxd7 {[%clk 0:02:15]} 1/2-1/2


[Site "https://www.chess.com"]

[Event "Titled Tuesday Blitz June 27 Early 2023"]
[White "Erdogmus, Yagiz Kaan"]
[Black "Paravyan, David"]
[WhiteFideId "44599790"]
[BlackFideId "4194985"]
[WhiteElo "2857"]
[BlackElo "2997"]
[Result "1/2-1/2"]
[Round "7"]
[TimeControl "180+2"]
[Date "2023.06.27"]
[WhiteClock "0:00:31"]
[BlackClock "0:02:33"]
[Board "7"]

1. e4 {[%clk 0:03:00]}  e5 {[%clk 0:02:58]} 2. Nf3 {[%clk 0:03:00]}  Nf6 {[%clk 0:02:58]} 3. Nxe5 {[%clk 0:02:56]}  d6 {[%clk 0:02:58]} 4. Nf3 {[%clk 0:02:56]}  Nxe4 {[%clk 0:02:58]} 5. Bd3 {[%clk 0:02:56]}  Nf6 {[%clk 0:02:57]} 6. O-O {[%clk 0:02:53]}  Be7 {[%clk 0:02:58]} 7. h3 {[%clk 0:02:53]}  O-O {[%clk 0:02:59]} 8. c3 {[%clk 0:02:53]}  d5 {[%clk 0:02:56]} 9. Bc2 {[%clk 0:02:54]}  Re8 {[%clk 0:02:52]} 10. d4 {[%clk 0:02:54]}  h6 {[%clk 0:02:53]} 11. Bf4 {[%clk 0:02:51]}  Bd6 {[%clk 0:02:53]} 12. Bxd6 {[%clk 0:00:31]}  Qxd6 {[%clk 0:02:33]} 1/2-1/2


[Site "https://www.chess.com"]

[Event "Titled Tuesday Blitz June 27 Early 2023"]
[White "Martinez Alcantara, Jose Eduardo"]
[Black "Maximov, Dmitry"]
[WhiteFideId "3805662"]
[BlackFideId "14105659"]
[WhiteElo "2996"]
[BlackElo "2850"]
[Result "1/2-1/2"]
[Round "7"]
[TimeControl "180+2"]
[Date "2023.06.27"]
[WhiteClock "0:01:12"]
[BlackClock "0:02:08"]
[Board "8"]

1. e4 {[%clk 0:03:00]}  c5 {[%clk 0:02:59]} 2. Nf3 {[%clk 0:03:01]}  d6 {[%clk 0:02:59]} 3. c3 {[%clk 0:03:02]}  Nf6 {[%clk 0:02:59]} 4. h3 {[%clk 0:03:02]}  Nbd7 {[%clk 0:02:57]} 5. Bd3 {[%clk 0:03:03]}  g6 {[%clk 0:02:55]} 6. Bc2 {[%clk 0:03:03]}  Bg7 {[%clk 0:02:55]} 7. d4 {[%clk 0:03:04]}  O-O {[%clk 0:02:55]} 8. O-O {[%clk 0:03:04]}  e5 {[%clk 0:02:54]} 9. dxe5 {[%clk 0:02:54]}  Nxe5 {[%clk 0:02:50]} 10. Nxe5 {[%clk 0:02:54]}  dxe5 {[%clk 0:02:51]} 11. Qe2 {[%clk 0:02:54]}  Be6 {[%clk 0:02:50]} 12. Be3 {[%clk 0:02:54]}  Qc7 {[%clk 0:02:46]} 13. Nd2 {[%clk 0:02:55]}  c4 {[%clk 0:02:45]} 14. Nf3 {[%clk 0:02:51]}  h6 {[%clk 0:02:44]} 15. Rfd1 {[%clk 0:02:51]}  Kh7 {[%clk 0:02:38]} 16. Rd2 {[%clk 0:02:49]}  Rfd8 {[%clk 0:02:35]} 17. Rad1 {[%clk 0:01:12]}  Rxd2 {[%clk 0:02:08]} 1/2-1/2


[Site "https://www.chess.com"]

[Event "Titled Tuesday Blitz June 27 Early 2023"]
[White "Horvath, Dominik"]
[Black "Narayanan.S.L"]
[WhiteFideId "1642561"]
[BlackFideId "5058422"]
[WhiteElo "2837"]
[BlackElo "2993"]
[Result "1/2-1/2"]
[Round "7"]
[TimeControl "180+2"]
[Date "2023.06.27"]
[WhiteClock "0:02:15"]
[BlackClock "0:01:31"]
[Board "9"]

1. e4 {[%clk 0:03:00]}  Nc6 {[%clk 0:02:58]} 2. Nf3 {[%clk 0:03:00]}  d6 {[%clk 0:02:57]} 3. d4 {[%clk 0:02:57]}  Nf6 {[%clk 0:02:58]} 4. Nc3 {[%clk 0:02:56]}  g6 {[%clk 0:02:58]} 5. Be2 {[%clk 0:02:55]}  Bg7 {[%clk 0:02:58]} 6. O-O {[%clk 0:02:56]}  O-O {[%clk 0:02:58]} 7. d5 {[%clk 0:02:56]}  Nb8 {[%clk 0:02:57]} 8. Re1 {[%clk 0:02:57]}  e5 {[%clk 0:02:57]} 9. dxe6 {[%clk 0:02:55]}  Bxe6 {[%clk 0:02:57]} 10. h3 {[%clk 0:02:54]}  Nc6 {[%clk 0:02:56]} 11. Bf1 {[%clk 0:02:55]}  Re8 {[%clk 0:02:56]} 12. Bg5 {[%clk 0:02:53]}  h6 {[%clk 0:02:55]} 13. Bh4 {[%clk 0:02:51]}  g5 {[%clk 0:02:52]} 14. Bg3 {[%clk 0:02:51]}  Nh5 {[%clk 0:02:52]} 15. Bh2 {[%clk 0:02:50]}  Nf4 {[%clk 0:02:52]} 16. Bxf4 {[%clk 0:02:45]}  gxf4 {[%clk 0:02:52]} 17. Nd5 {[%clk 0:02:46]}  Bxd5 {[%clk 0:01:31]} 18. exd5 {[%clk 0:02:15]} 1/2-1/2


[Site "https://www.chess.com"]

[Event "Titled Tuesday Blitz June 27 Early 2023"]
[White "Sanal, Vahap"]
[Black "Talibov, Shiroghlan"]
[WhiteFideId "6300545"]
[BlackFideId "13429078"]
[WhiteElo "2958"]
[BlackElo "2836"]
[Result "1/2-1/2"]
[Round "7"]
[TimeControl "180+2"]
[Date "2023.06.27"]
[WhiteClock "0:01:25"]
[BlackClock "0:02:05"]
[Board "10"]

1. e4 {[%clk 0:02:58]}  c5 {[%clk 0:02:47]} 2. Nc3 {[%clk 0:02:58]}  d6 {[%clk 0:02:39]} 3. d4 {[%clk 0:02:58]}  cxd4 {[%clk 0:02:38]} 4. Qxd4 {[%clk 0:02:58]}  Nf6 {[%clk 0:02:34]} 5. b3 {[%clk 0:02:57]}  Nc6 {[%clk 0:02:34]} 6. Qd2 {[%clk 0:02:56]}  g6 {[%clk 0:02:29]} 7. Bb2 {[%clk 0:02:57]}  Bg7 {[%clk 0:02:29]} 8. O-O-O {[%clk 0:02:56]}  O-O {[%clk 0:02:30]} 9. f3 {[%clk 0:02:55]}  a5 {[%clk 0:02:29]} 10. a4 {[%clk 0:02:56]}  Nb4 {[%clk 0:02:27]} 11. h4 {[%clk 0:02:55]}  Be6 {[%clk 0:02:26]} 12. Nge2 {[%clk 0:01:25]}  Rc8 {[%clk 0:02:05]} 1/2-1/2


[Site "https://www.chess.com"]

[Event "Titled Tuesday Blitz June 27 Early 2023"]
[White "Makhnev, Denis"]
[Black "Kilic, Eray"]
[WhiteFideId "13707647"]
[BlackFideId "44517173"]
[WhiteElo "2908"]
[BlackElo "2785"]
[Result "1-0"]
[Round "7"]
[TimeControl "180+2"]
[Date "2023.06.27"]
[WhiteClock "0:01:49"]
[BlackClock "0:00:00"]
[Board "13"]

1. d4 {[%clk 0:03:00]}  Nf6 {[%clk 0:02:57]} 2. c4 {[%clk 0:03:01]}  e6 {[%clk 0:02:57]} 3. Nf3 {[%clk 0:03:01]}  b6 {[%clk 0:02:57]} 4. a3 {[%clk 0:02:59]}  Ba6 {[%clk 0:02:55]} 5. Qc2 {[%clk 0:02:59]}  d5 {[%clk 0:02:53]} 6. cxd5 {[%clk 0:02:56]}  exd5 {[%clk 0:02:53]} 7. Bg5 {[%clk 0:02:53]}  Be7 {[%clk 0:02:52]} 8. Nc3 {[%clk 0:02:53]}  O-O {[%clk 0:02:52]} 9. Rd1 {[%clk 0:02:50]}  Bb7 {[%clk 0:02:51]} 10. e3 {[%clk 0:02:38]}  Nbd7 {[%clk 0:02:51]} 11. Bd3 {[%clk 0:02:37]}  h6 {[%clk 0:02:51]} 12. Bh4 {[%clk 0:02:35]}  Rc8 {[%clk 0:02:50]} 13. O-O {[%clk 0:02:33]}  Re8 {[%clk 0:00:00]} 14. Bf5 {[%clk 0:01:49]} 1-0


[Site "https://www.chess.com"]

[Event "Titled Tuesday Blitz June 27 Early 2023"]
[White "Nogerbek, Kazybek"]
[Black "Halkias, Stelios"]
[WhiteFideId "13710427"]
[BlackFideId "4201809"]
[WhiteElo "2907"]
[BlackElo "2784"]
[Result "1/2-1/2"]
[Round "7"]
[TimeControl "180+2"]
[Date "2023.06.27"]
[WhiteClock "0:02:16"]
[BlackClock "0:01:05"]
[Board "14"]

1. d4 {[%clk 0:03:00]}  d5 {[%clk 0:02:56]} 2. Nf3 {[%clk 0:03:00]}  Nf6 {[%clk 0:02:56]} 3. c4 {[%clk 0:03:00]}  e6 {[%clk 0:02:56]} 4. cxd5 {[%clk 0:02:54]}  exd5 {[%clk 0:02:56]} 5. Nc3 {[%clk 0:02:54]}  c6 {[%clk 0:02:56]} 6. Qc2 {[%clk 0:02:51]}  g6 {[%clk 0:02:55]} 7. Bg5 {[%clk 0:02:51]}  Be7 {[%clk 0:02:53]} 8. e3 {[%clk 0:02:52]}  Bf5 {[%clk 0:02:53]} 9. Bd3 {[%clk 0:02:52]}  Bxd3 {[%clk 0:02:53]} 10. Qxd3 {[%clk 0:02:53]}  Nbd7 {[%clk 0:02:54]} 11. Bh6 {[%clk 0:02:53]}  Ng4 {[%clk 0:02:53]} 12. Bf4 {[%clk 0:02:54]}  O-O {[%clk 0:02:54]} 13. h3 {[%clk 0:02:51]}  Ngf6 {[%clk 0:02:53]} 14. g4 {[%clk 0:02:52]}  Re8 {[%clk 0:02:52]} 15. Kf1 {[%clk 0:02:34]}  Bb4 {[%clk 0:01:05]} 16. Kg2 {[%clk 0:02:16]} 1/2-1/2


[Site "https://www.chess.com"]

[Event "Titled Tuesday Blitz June 27 Early 2023"]
[White "Maksimovic, Bojan"]
[Black "Ter-Sahakyan, Samvel"]
[WhiteFideId "14408120"]
[BlackFideId "13302531"]
[WhiteElo "2778"]
[BlackElo "2901"]
[Result "1/2-1/2"]
[Round "7"]
[TimeControl "180+2"]
[Date "2023.06.27"]
[WhiteClock "0:00:34"]
[BlackClock "0:02:34"]
[Board "22"]

1. Nf3 {[%clk 0:03:00]}  d5 {[%clk 0:02:59]} 2. g3 {[%clk 0:03:01]}  g6 {[%clk 0:03:00]} 3. Bg2 {[%clk 0:03:01]}  Bg7 {[%clk 0:03:01]} 4. d3 {[%clk 0:03:01]}  e5 {[%clk 0:03:00]} 5. O-O {[%clk 0:03:00]}  Nc6 {[%clk 0:03:00]} 6. e4 {[%clk 0:02:59]}  Nge7 {[%clk 0:02:56]} 7. Nbd2 {[%clk 0:02:58]}  O-O {[%clk 0:02:55]} 8. Re1 {[%clk 0:02:59]}  Re8 {[%clk 0:02:54]} 9. c3 {[%clk 0:02:58]}  h6 {[%clk 0:02:53]} 10. b4 {[%clk 0:02:54]}  a6 {[%clk 0:02:52]} 11. Bb2 {[%clk 0:02:54]}  g5 {[%clk 0:02:45]} 12. a4 {[%clk 0:02:53]}  dxe4 {[%clk 0:02:42]} 13. dxe4 {[%clk 0:02:52]}  Ng6 {[%clk 0:02:41]} 14. b5 {[%clk 0:00:34]}  Na5 {[%clk 0:02:34]} 1/2-1/2


[Site "https://www.chess.com"]

[Event "Titled Tuesday Blitz June 27 Early 2023"]
[White "Henriquez Villagra, Cristobal"]
[Black "Renjith, Sravan"]
[WhiteFideId "3409350"]
[BlackFideId "4306783"]
[WhiteElo "2897"]
[BlackElo "2751"]
[Result "1-0"]
[Round "7"]
[TimeControl "180+2"]
[Date "2023.06.27"]
[WhiteClock "0:01:39"]
[BlackClock "0:00:00"]
[Board "23"]

1. d3 {[%clk 0:03:00]}  d5 {[%clk 0:02:59]} 2. g3 {[%clk 0:03:00]}  Nf6 {[%clk 0:03:00]} 3. Bg2 {[%clk 0:03:00]}  g6 {[%clk 0:03:00]} 4. f4 {[%clk 0:03:00]}  Bg7 {[%clk 0:03:00]} 5. Nf3 {[%clk 0:03:00]}  c5 {[%clk 0:03:01]} 6. O-O {[%clk 0:03:01]}  O-O {[%clk 0:03:01]} 7. c4 {[%clk 0:02:56]}  d4 {[%clk 0:03:01]} 8. e4 {[%clk 0:02:47]}  dxe3 {[%clk 0:03:00]} 9. Nc3 {[%clk 0:02:37]}  Bf5 {[%clk 0:02:59]} 10. Bxe3 {[%clk 0:02:26]}  Qxd3 {[%clk 0:02:57]} 11. Qxd3 {[%clk 0:02:18]}  Bxd3 {[%clk 0:00:00]} 12. Rfd1 {[%clk 0:01:39]} 1-0


[Site "https://www.chess.com"]

[Event "Titled Tuesday Blitz June 27 Early 2023"]
[White "Steinberg, Nitzan"]
[Black "Atakhan, Abtin"]
[WhiteFideId "2801795"]
[BlackFideId "22502203"]
[WhiteElo "2892"]
[BlackElo "2748"]
[Result "1/2-1/2"]
[Round "7"]
[TimeControl "180+2"]
[Date "2023.06.27"]
[WhiteClock "0:00:37"]
[BlackClock "0:02:32"]
[Board "24"]

1. Nf3 {[%clk 0:03:00]}  Nf6 {[%clk 0:03:00]} 2. g3 {[%clk 0:03:00]}  g6 {[%clk 0:02:59]} 3. Bg2 {[%clk 0:03:01]}  d5 {[%clk 0:03:00]} 4. O-O {[%clk 0:03:02]}  Bg7 {[%clk 0:03:00]} 5. d3 {[%clk 0:03:02]}  O-O {[%clk 0:03:01]} 6. Nbd2 {[%clk 0:03:03]}  Nc6 {[%clk 0:03:00]} 7. e4 {[%clk 0:03:03]}  e5 {[%clk 0:03:01]} 8. Re1 {[%clk 0:02:52]}  Re8 {[%clk 0:03:00]} 9. exd5 {[%clk 0:02:45]}  Nxd5 {[%clk 0:03:01]} 10. c3 {[%clk 0:02:43]}  Nb6 {[%clk 0:03:00]} 11. Ne4 {[%clk 0:02:42]}  h6 {[%clk 0:02:56]} 12. b4 {[%clk 0:02:35]}  f5 {[%clk 0:02:50]} 13. Nc5 {[%clk 0:02:35]}  e4 {[%clk 0:02:50]} 14. Qb3+ {[%clk 0:00:37]}  Kh8 {[%clk 0:02:32]} 1/2-1/2


[Site "https://www.chess.com"]

[Event "Titled Tuesday Blitz June 27 Early 2023"]
[White "Movahed, Sina"]
[Black "Di Benedetto, Edoardo"]
[WhiteFideId "42520835"]
[BlackFideId "875740"]
[WhiteElo "2925"]
[BlackElo "2692"]
[Result "1/2-1/2"]
[Round "7"]
[TimeControl "180+2"]
[Date "2023.06.27"]
[WhiteClock "0:02:25"]
[BlackClock "0:01:07"]
[Board "29"]

1. Nf3 {[%clk 0:03:00]}  d5 {[%clk 0:02:59]} 2. g3 {[%clk 0:03:00]}  c6 {[%clk 0:02:58]} 3. Bg2 {[%clk 0:03:00]}  Bg4 {[%clk 0:02:59]} 4. O-O {[%clk 0:03:00]}  Nd7 {[%clk 0:02:58]} 5. c4 {[%clk 0:02:59]}  e6 {[%clk 0:02:56]} 6. d4 {[%clk 0:02:57]}  Ngf6 {[%clk 0:02:51]} 7. h3 {[%clk 0:02:58]}  Bxf3 {[%clk 0:02:51]} 8. Bxf3 {[%clk 0:02:57]}  Be7 {[%clk 0:02:51]} 9. cxd5 {[%clk 0:02:56]}  exd5 {[%clk 0:02:51]} 10. Nc3 {[%clk 0:02:57]}  O-O {[%clk 0:02:51]} 11. Rb1 {[%clk 0:02:55]}  a5 {[%clk 0:02:48]} 12. a3 {[%clk 0:02:55]}  Nb6 {[%clk 0:02:46]} 13. Qc2 {[%clk 0:02:52]}  Nc4 {[%clk 0:02:45]} 14. Ra1 {[%clk 0:02:53]}  Re8 {[%clk 0:02:41]} 15. b3 {[%clk 0:02:50]}  Nb6 {[%clk 0:02:41]} 16. Kg2 {[%clk 0:02:48]}  Qd7 {[%clk 0:01:07]} 17. Bg5 {[%clk 0:02:25]} 1/2-1/2


[Site "https://www.chess.com"]

[Event "Titled Tuesday Blitz June 27 Early 2023"]
[White "Kourkoulos-Arditis, Stamatis"]
[Black "Chigaev, Maksim"]
[WhiteFideId "4221990"]
[BlackFideId "4108116"]
[WhiteElo "2679"]
[BlackElo "2891"]
[Result "1/2-1/2"]
[Round "7"]
[TimeControl "180+2"]
[Date "2023.06.27"]
[WhiteClock "0:02:27"]
[BlackClock "0:00:44"]
[Board "31"]

1. c4 {[%clk 0:03:00]}  e5 {[%clk 0:02:58]} 2. Nc3 {[%clk 0:03:00]}  Nf6 {[%clk 0:02:59]} 3. g3 {[%clk 0:03:00]}  Bb4 {[%clk 0:02:58]} 4. Bg2 {[%clk 0:02:59]}  Bxc3 {[%clk 0:02:56]} 5. dxc3 {[%clk 0:03:00]}  d6 {[%clk 0:02:56]} 6. Nf3 {[%clk 0:02:59]}  O-O {[%clk 0:02:55]} 7. Nd2 {[%clk 0:02:59]}  Qe7 {[%clk 0:02:53]} 8. e4 {[%clk 0:02:58]}  a5 {[%clk 0:02:53]} 9. a4 {[%clk 0:02:58]}  Na6 {[%clk 0:02:53]} 10. Nf1 {[%clk 0:02:53]}  Nc5 {[%clk 0:02:43]} 11. f3 {[%clk 0:02:53]}  b6 {[%clk 0:02:42]} 12. Ne3 {[%clk 0:02:52]}  Be6 {[%clk 0:00:44]} 13. Qc2 {[%clk 0:02:27]} 1/2-1/2


[Site "https://www.chess.com"]

[Event "Titled Tuesday Blitz June 27 Early 2023"]
[White "Pichot, Alan"]
[Black "Danielyan, Vahe"]
[WhiteFideId "110973"]
[BlackFideId "13304828"]
[WhiteElo "2857"]
[BlackElo "2678"]
[Result "1/2-1/2"]
[Round "7"]
[TimeControl "180+2"]
[Date "2023.06.27"]
[WhiteClock "0:01:01"]
[BlackClock "0:02:10"]
[Board "32"]

1. e4 {[%clk 0:02:56]}  c5 {[%clk 0:02:58]} 2. Nf3 {[%clk 0:02:56]}  e6 {[%clk 0:02:57]} 3. d4 {[%clk 0:02:56]}  cxd4 {[%clk 0:02:58]} 4. Nxd4 {[%clk 0:02:56]}  a6 {[%clk 0:02:58]} 5. Nc3 {[%clk 0:02:54]}  b5 {[%clk 0:02:58]} 6. Bd3 {[%clk 0:02:52]}  Bc5 {[%clk 0:02:56]} 7. Nb3 {[%clk 0:02:50]}  Be7 {[%clk 0:02:56]} 8. O-O {[%clk 0:02:50]}  Bb7 {[%clk 0:02:54]} 9. f4 {[%clk 0:02:42]}  d6 {[%clk 0:02:52]} 10. a4 {[%clk 0:02:36]}  b4 {[%clk 0:02:51]} 11. Na2 {[%clk 0:02:36]}  Nf6 {[%clk 0:02:38]} 12. Qe2 {[%clk 0:01:01]}  h5 {[%clk 0:02:10]} 1/2-1/2


[Site "https://www.chess.com"]

[Event "Titled Tuesday Blitz June 27 Early 2023"]
[White "Sahib Singh"]
[Black "Harsh Suresh"]
[WhiteFideId "25618342"]
[BlackFideId "45018464"]
[WhiteElo "2663"]
[BlackElo "2813"]
[Result "0-1"]
[Round "7"]
[TimeControl "180+2"]
[Date "2023.06.27"]
[WhiteClock "0:00:00"]
[BlackClock "0:02:07"]
[Board "37"]

1. e4 {[%clk 0:03:00]}  c6 {[%clk 0:02:58]} 2. d4 {[%clk 0:03:00]}  d5 {[%clk 0:02:59]} 3. Nc3 {[%clk 0:03:00]}  dxe4 {[%clk 0:02:55]} 4. Nxe4 {[%clk 0:03:00]}  Bf5 {[%clk 0:02:55]} 5. Ng3 {[%clk 0:02:59]}  Bg6 {[%clk 0:02:56]} 6. Nf3 {[%clk 0:02:59]}  Nd7 {[%clk 0:02:56]} 7. h4 {[%clk 0:02:59]}  h6 {[%clk 0:02:56]} 8. h5 {[%clk 0:03:00]}  Bh7 {[%clk 0:02:56]} 9. Bd3 {[%clk 0:03:00]}  Bxd3 {[%clk 0:02:57]} 10. Qxd3 {[%clk 0:03:01]}  e6 {[%clk 0:02:57]} 11. Bd2 {[%clk 0:03:01]}  Ngf6 {[%clk 0:02:56]} 12. O-O-O {[%clk 0:03:01]}  Be7 {[%clk 0:02:56]} 13. Ne4 {[%clk 0:03:01]}  Nxe4 {[%clk 0:02:56]} 14. Qxe4 {[%clk 0:03:02]}  Nf6 {[%clk 0:02:57]} 15. Qd3 {[%clk 0:03:02]}  Qd5 {[%clk 0:02:58]} 16. c4 {[%clk 0:03:02]}  Qe4 {[%clk 0:02:58]} 17. Qb3 {[%clk 0:03:01]}  O-O-O {[%clk 0:02:42]} 18. Rhe1 {[%clk 0:00:00]}  Qg4 {[%clk 0:02:07]} 0-1


[Site "https://www.chess.com"]

[Event "Titled Tuesday Blitz June 27 Early 2023"]
[White "Kushko, Dmitriy"]
[Black "Bauman_Guy"]
[WhiteFideId "14162261"]
[WhiteElo "2810"]
[BlackElo "2659"]
[Result "1/2-1/2"]
[Round "7"]
[TimeControl "180+2"]
[Date "2023.06.27"]
[WhiteClock "0:02:01"]
[BlackClock "0:01:37"]
[Board "38"]

1. Nf3 {[%clk 0:03:00]}  d5 {[%clk 0:02:59]} 2. g3 {[%clk 0:03:01]}  c6 {[%clk 0:03:00]} 3. Bg2 {[%clk 0:03:01]}  Bg4 {[%clk 0:03:00]} 4. h3 {[%clk 0:03:01]}  Bh5 {[%clk 0:03:00]} 5. O-O {[%clk 0:03:01]}  Nd7 {[%clk 0:03:00]} 6. d4 {[%clk 0:03:01]}  Ngf6 {[%clk 0:03:00]} 7. c4 {[%clk 0:03:01]}  e6 {[%clk 0:03:01]} 8. cxd5 {[%clk 0:03:01]}  cxd5 {[%clk 0:03:01]} 9. Qb3 {[%clk 0:02:59]}  Qb6 {[%clk 0:03:01]} 10. Nc3 {[%clk 0:02:59]}  Bd6 {[%clk 0:03:01]} 11. Qxb6 {[%clk 0:02:39]}  Nxb6 {[%clk 0:03:01]} 12. Nb5 {[%clk 0:02:27]}  Bb8 {[%clk 0:03:00]} 13. Bf4 {[%clk 0:02:27]}  Bxf4 {[%clk 0:01:37]} 14. gxf4 {[%clk 0:02:01]} 1/2-1/2


[Site "https://www.chess.com"]